Workbook

Sheet 5yr Monthly Detail
A1: COUNTRY HOME ESTATES-Pro Forma as of November 2025
A4: Category | B4: Jan Y1 | C4: Feb Y1 | D4: Mar Y1 | E4: Apr Y1 | F4: May Y1 | G4: Jun Y1 | H4: Jul Y1 | I4: Aug Y1 | J4: Sep Y1 | K4: Oct Y1 | L4: Nov Y1 | M4: Dec Y1 | N4: TOTAL | P4: Jan Y2 | Q4: Feb Y2 | R4: Mar Y2 | S4: Apr Y2 | T4: May Y2 | U4: Jun Y2 | V4: Jul Y2 | W4: Aug Y2 | X4: Sep Y2 | Y4: Oct Y2 | Z4: Nov Y2 | AA4: Dec Y2 | AB4: TOTAL | AD4: Jan Y3 | AE4: Feb Y3 | AF4: Mar Y3 | AG4: Apr Y3 | AH4: May Y3 | AI4: Jun Y3 | AJ4: Jul Y3 | AK4: Aug Y3 | AL4: Sep Y3 | AM4: Oct Y3 | AN4: Nov Y3 | AO4: Dec Y3 | AP4: TOTAL | AR4: Jan Y4 | AS4: Feb Y4 | AT4: Mar Y4 | AU4: Apr Y4 | AV4: May Y4 | AW4: Jun Y4 | AX4: Jul Y4 | AY4: Aug Y4 | AZ4: Sep Y4 | BA4: Oct Y4 | BB4: Nov Y4 | BC4: Dec Y4 | BD4: TOTAL | BF4: Jan Y5 | BG4: Feb Y5 | BH4: Mar Y5 | BI4: Apr Y5 | BJ4: May Y5 | BK4: Jun Y5 | BL4: Jul Y5 | BM4: Aug Y5 | BN4: Sep Y5 | BO4: Oct Y5 | BP4: Nov Y5 | BQ4: Dec Y5 | BR4: TOTAL
A5: Rental Income | B5: 29500 | C5: 29500 | D5: 29500 | E5: 29500 | F5: 29500 | G5: 29500 | H5: 29500 | I5: 29500 | J5: 29500 | K5: 29500 | L5: 29500 | M5: 29500 | N5: =SUM(B5:M5) -> 354000 | P5: 30500 | Q5: 30500 | R5: 30500 | S5: 30500 | T5: 30500 | U5: 30500 | V5: 30500 | W5: 30500 | X5: 30500 | Y5: 30500 | Z5: 30500 | AA5: 30500 | AB5: =SUM(P5:AA5) -> 366000 | AD5: 31500 | AE5: 31500 | AF5: 31500 | AG5: 31500 | AH5: 31500 | AI5: 31500 | AJ5: 31500 | AK5: 31500 | AL5: 31500 | AM5: 31500 | AN5: 31500 | AO5: 31500 | AP5: =SUM(AD5:AO5) -> 378000 | AR5: 32500 | AS5: 32500 | AT5: 32500 | AU5: 32500 | AV5: 32500 | AW5: 32500 | AX5: 32500 | AY5: 32500 | AZ5: 32500 | BA5: 32500 | BB5: 32500 | BC5: 32500 | BD5: =SUM(AR5:BC5) -> 390000 | BF5: 33500 | BG5: 33500 | BH5: 33500 | BI5: 33500 | BJ5: 33500 | BK5: 33500 | BL5: 33500 | BM5: 33500 | BN5: 33500 | BO5: 33500 | BP5: 33500 | BQ5: 33500 | BR5: =SUM(BF5:BQ5) -> 402000
A6: Laundry Income | B6: 166.6666667 | C6: 166.6666667 | D6: 166.6666667 | E6: 166.6666667 | F6: 166.6666667 | G6: 166.6666667 | H6: 166.6666667 | I6: 166.6666667 | J6: 166.6666667 | K6: 166.6666667 | L6: 166.6666667 | M6: 166.6666667 | N6: 2000 | P6: 171.6666667 | Q6: 171.6666667 | R6: 171.6666667 | S6: 171.6666667 | T6: 171.6666667 | U6: 171.6666667 | V6: 171.6666667 | W6: 171.6666667 | X6: 171.6666667 | Y6: 171.6666667 | Z6: 171.6666667 | AA6: 171.6666667 | AB6: 2060 | AD6: 176.8166667 | AE6: 176.8166667 | AF6: 176.8166667 | AG6: 176.8166667 | AH6: 176.8166667 | AI6: 176.8166667 | AJ6: 176.8166667 | AK6: 176.8166667 | AL6: 176.8166667 | AM6: 176.8166667 | AN6: 176.8166667 | AO6: 176.8166667 | AP6: 2121.8 | AR6: 182.1211667 | AS6: 182.1211667 | AT6: 182.1211667 | AU6: 182.1211667 | AV6: 182.1211667 | AW6: 182.1211667 | AX6: 182.1211667 | AY6: 182.1211667 | AZ6: 182.1211667 | BA6: 182.1211667 | BB6: 182.1211667 | BC6: 182.1211667 | BD6: 2185.454 | BF6: 187.5848017 | BG6: 187.5848017 | BH6: 187.5848017 | BI6: 187.5848017 | BJ6: 187.5848017 | BK6: 187.5848017 | BL6: 187.5848017 | BM6: 187.5848017 | BN6: 187.5848017 | BO6: 187.5848017 | BP6: 187.5848017 | BQ6: 187.5848017 | BR6: 2251.01762
A7: Total Revenue | N7: =SUM(N5:N6) -> 356000 | AB7: =SUM(AB5:AB6) -> 368060 | AP7: =SUM(AP5:AP6) -> 380121.8 | BD7: =SUM(BD5:BD6) -> 392185.454 | BR7: =SUM(BR5:BR6) -> 404251.0176
A9: Utilities (Water/Sewer/Trash) | B9: 2500 | C9: 2500 | D9: 2500 | E9: 2500 | F9: 2500 | G9: 2500 | H9: 2500 | I9: 2500 | J9: 2500 | K9: 2500 | L9: 2500 | M9: 2500 | N9: =SUM(B9:M9) -> 30000 | P9: 2550 | Q9: 2550 | R9: 2550 | S9: 2550 | T9: 2550 | U9: 2550 | V9: 2550 | W9: 2550 | X9: 2550 | Y9: 2550 | Z9: 2550 | AA9: 2550 | AB9: =SUM(P9:AA9) -> 30600 | AD9: 2601 | AE9: 2601 | AF9: 2601 | AG9: 2601 | AH9: 2601 | AI9: 2601 | AJ9: 2601 | AK9: 2601 | AL9: 2601 | AM9: 2601 | AN9: 2601 | AO9: 2601 | AP9: =SUM(AD9:AO9) -> 31212 | AR9: 2653.02 | AS9: 2653.02 | AT9: 2653.02 | AU9: 2653.02 | AV9: 2653.02 | AW9: 2653.02 | AX9: 2653.02 | AY9: 2653.02 | AZ9: 2653.02 | BA9: 2653.02 | BB9: 2653.02 | BC9: 2653.02 | BD9: =SUM(AR9:BC9) -> 31836.24 | BF9: 2706.0804 | BG9: 2706.0804 | BH9: 2706.0804 | BI9: 2706.0804 | BJ9: 2706.0804 | BK9: 2706.0804 | BL9: 2706.0804 | BM9: 2706.0804 | BN9: 2706.0804 | BO9: 2706.0804 | BP9: 2706.0804 | BQ9: 2706.0804 | BR9: =SUM(BF9:BQ9) -> 32472.9648
A10: Electricity | B10: 3600 | C10: 3600 | D10: 3600 | E10: 3600 | F10: 3600 | G10: 3600 | H10: 3600 | I10: 3600 | J10: 3600 | K10: 3600 | L10: 3600 | M10: 3600 | N10: 43200 | P10: 3672 | Q10: 3672 | R10: 3672 | S10: 3672 | T10: 3672 | U10: 3672 | V10: 3672 | W10: 3672 | X10: 3672 | Y10: 3672 | Z10: 3672 | AA10: 3672 | AB10: 44064 | AD10: 3745.44 | AE10: 3745.44 | AF10: 3745.44 | AG10: 3745.44 | AH10: 3745.44 | AI10: 3745.44 | AJ10: 3745.44 | AK10: 3745.44 | AL10: 3745.44 | AM10: 3745.44 | AN10: 3745.44 | AO10: 3745.44 | AP10: 44945.28 | AR10: 3820.3488 | AS10: 3820.3488 | AT10: 3820.3488 | AU10: 3820.3488 | AV10: 3820.3488 | AW10: 3820.3488 | AX10: 3820.3488 | AY10: 3820.3488 | AZ10: 3820.3488 | BA10: 3820.3488 | BB10: 3820.3488 | BC10: 3820.3488 | BD10: 45844.1856 | BF10: 3896.755776 | BG10: 3896.755776 | BH10: 3896.755776 | BI10: 3896.755776 | BJ10: 3896.755776 | BK10: 3896.755776 | BL10: 3896.755776 | BM10: 3896.755776 | BN10: 3896.755776 | BO10: 3896.755776 | BP10: 3896.755776 | BQ10: 3896.755776 | BR10: 46761.06931
A11: Maintenance & Repairs | B11: 583 | C11: 583 | D11: 583 | E11: 583 | F11: 583 | G11: 583 | H11: 583 | I11: 583 | J11: 583 | K11: 583 | L11: 583 | M11: 583 | N11: 6996 | P11: 594.66 | Q11: 594.66 | R11: 594.66 | S11: 594.66 | T11: 594.66 | U11: 594.66 | V11: 594.66 | W11: 594.66 | X11: 594.66 | Y11: 594.66 | Z11: 594.66 | AA11: 594.66 | AB11: 7135.92 | AD11: 606.5532 | AE11: 606.5532 | AF11: 606.5532 | AG11: 606.5532 | AH11: 606.5532 | AI11: 606.5532 | AJ11: 606.5532 | AK11: 606.5532 | AL11: 606.5532 | AM11: 606.5532 | AN11: 606.5532 | AO11: 606.5532 | AP11: 7278.6384 | AR11: 618.684264 | AS11: 618.684264 | AT11: 618.684264 | AU11: 618.684264 | AV11: 618.684264 | AW11: 618.684264 | AX11: 618.684264 | AY11: 618.684264 | AZ11: 618.684264 | BA11: 618.684264 | BB11: 618.684264 | BC11: 618.684264 | BD11: 7424.211168 | BF11: 631.0579493 | BG11: 631.0579493 | BH11: 631.0579493 | BI11: 631.0579493 | BJ11: 631.0579493 | BK11: 631.0579493 | BL11: 631.0579493 | BM11: 631.0579493 | BN11: 631.0579493 | BO11: 631.0579493 | BP11: 631.0579493 | BQ11: 631.0579493 | BR11: 7572.695391
A12: Insurance | B12: 151.92 | C12: 151.92 | D12: 151.92 | E12: 151.92 | F12: 151.92 | G12: 151.92 | H12: 151.92 | I12: 151.92 | J12: 151.92 | K12: 151.92 | L12: 151.92 | M12: 151.92 | N12: 1823.04 | P12: 154.9584 | Q12: 154.9584 | R12: 154.9584 | S12: 154.9584 | T12: 154.9584 | U12: 154.9584 | V12: 154.9584 | W12: 154.9584 | X12: 154.9584 | Y12: 154.9584 | Z12: 154.9584 | AA12: 154.9584 | AB12: 1859.5008 | AD12: 158.057568 | AE12: 158.057568 | AF12: 158.057568 | AG12: 158.057568 | AH12: 158.057568 | AI12: 158.057568 | AJ12: 158.057568 | AK12: 158.057568 | AL12: 158.057568 | AM12: 158.057568 | AN12: 158.057568 | AO12: 158.057568 | AP12: 1896.690816 | AR12: 161.2187194 | AS12: 161.2187194 | AT12: 161.2187194 | AU12: 161.2187194 | AV12: 161.2187194 | AW12: 161.2187194 | AX12: 161.2187194 | AY12: 161.2187194 | AZ12: 161.2187194 | BA12: 161.2187194 | BB12: 161.2187194 | BC12: 161.2187194 | BD12: 1934.624632 | BF12: 164.4430937 | BG12: 164.4430937 | BH12: 164.4430937 | BI12: 164.4430937 | BJ12: 164.4430937 | BK12: 164.4430937 | BL12: 164.4430937 | BM12: 164.4430937 | BN12: 164.4430937 | BO12: 164.4430937 | BP12: 164.4430937 | BQ12: 164.4430937 | BR12: 1973.317125
A13: Property Taxes | B13: 785.25 | C13: 785.25 | D13: 785.25 | E13: 785.25 | F13: 785.25 | G13: 785.25 | H13: 785.25 | I13: 785.25 | J13: 785.25 | K13: 785.25 | L13: 785.25 | M13: 785.25 | N13: 9423 | P13: 800.955 | Q13: 800.955 | R13: 800.955 | S13: 800.955 | T13: 800.955 | U13: 800.955 | V13: 800.955 | W13: 800.955 | X13: 800.955 | Y13: 800.955 | Z13: 800.955 | AA13: 800.955 | AB13: 9611.46 | AD13: 816.9741 | AE13: 816.9741 | AF13: 816.9741 | AG13: 816.9741 | AH13: 816.9741 | AI13: 816.9741 | AJ13: 816.9741 | AK13: 816.9741 | AL13: 816.9741 | AM13: 816.9741 | AN13: 816.9741 | AO13: 816.9741 | AP13: 9803.6892 | AR13: 833.313582 | AS13: 833.313582 | AT13: 833.313582 | AU13: 833.313582 | AV13: 833.313582 | AW13: 833.313582 | AX13: 833.313582 | AY13: 833.313582 | AZ13: 833.313582 | BA13: 833.313582 | BB13: 833.313582 | BC13: 833.313582 | BD13: 9999.762984 | BF13: 849.9798536 | BG13: 849.9798536 | BH13: 849.9798536 | BI13: 849.9798536 | BJ13: 849.9798536 | BK13: 849.9798536 | BL13: 849.9798536 | BM13: 849.9798536 | BN13: 849.9798536 | BO13: 849.9798536 | BP13: 849.9798536 | BQ13: 849.9798536 | BR13: 10199.75824
A14: Management | B14: 2000 | C14: 2000 | D14: 2000 | E14: 2000 | F14: 2000 | G14: 2000 | H14: 2000 | I14: 2000 | J14: 2000 | K14: 2000 | L14: 2000 | M14: 2000 | N14: 24000 | P14: 2000 | Q14: 2000 | R14: 2000 | S14: 2000 | T14: 2000 | U14: 2000 | V14: 2000 | W14: 2000 | X14: 2000 | Y14: 2000 | Z14: 2000 | AA14: 2000 | AB14: 24000 | AD14: 2000 | AE14: 2000 | AF14: 2000 | AG14: 2000 | AH14: 2000 | AI14: 2000 | AJ14: 2000 | AK14: 2000 | AL14: 2000 | AM14: 2000 | AN14: 2000 | AO14: 2000 | AP14: 24000 | AR14: 2000 | AS14: 2000 | AT14: 2000 | AU14: 2000 | AV14: 2000 | AW14: 2000 | AX14: 2000 | AY14: 2000 | AZ14: 2000 | BA14: 2000 | BB14: 2000 | BC14: 2000 | BD14: 24000 | BF14: 2000 | BG14: 2000 | BH14: 2000 | BI14: 2000 | BJ14: 2000 | BK14: 2000 | BL14: 2000 | BM14: 2000 | BN14: 2000 | BO14: 2000 | BP14: 2000 | BQ14: 2000 | BR14: 24000
A15: Marketing & Advertising | B15: 300 | C15: 300 | D15: 300 | E15: 300 | F15: 300 | G15: 300 | H15: 300 | I15: 300 | J15: 300 | K15: 300 | L15: 300 | M15: 300 | N15: 3600 | P15: 300 | Q15: 300 | R15: 300 | S15: 300 | T15: 300 | U15: 300 | V15: 300 | W15: 300 | X15: 300 | Y15: 300 | Z15: 300 | AA15: 300 | AB15: 3600 | AD15: 300 | AE15: 300 | AF15: 300 | AG15: 300 | AH15: 300 | AI15: 300 | AJ15: 300 | AK15: 300 | AL15: 300 | AM15: 300 | AN15: 300 | AO15: 300 | AP15: 3600 | AR15: 300 | AS15: 300 | AT15: 300 | AU15: 300 | AV15: 300 | AW15: 300 | AX15: 300 | AY15: 300 | AZ15: 300 | BA15: 300 | BB15: 300 | BC15: 300 | BD15: 3600 | BF15: 300 | BG15: 300 | BH15: 300 | BI15: 300 | BJ15: 300 | BK15: 300 | BL15: 300 | BM15: 300 | BN15: 300 | BO15: 300 | BP15: 300 | BQ15: 300 | BR15: 3600
A16: Miscellaneous | B16: 0 | C16: 0 | D16: 0 | E16: 0 | F16: 125 | G16: 0 | H16: 125 | I16: 0 | J16: 125 | K16: 0 | L16: 0 | M16: 0 | N16: 375 | P16: 0 | Q16: 0 | R16: 0 | S16: 0 | T16: 127.5 | U16: 0 | V16: 127.5 | W16: 0 | X16: 127.5 | Y16: 0 | Z16: 0 | AA16: 0 | AB16: 382.5 | AD16: 0 | AE16: 0 | AF16: 0 | AG16: 0 | AH16: 130.05 | AI16: 0 | AJ16: 130.05 | AK16: 0 | AL16: 130.05 | AM16: 0 | AN16: 0 | AO16: 0 | AP16: 390.15 | AR16: 0 | AS16: 0 | AT16: 0 | AU16: 0 | AV16: 132.651 | AW16: 0 | AX16: 132.651 | AY16: 0 | AZ16: 132.651 | BA16: 0 | BB16: 0 | BC16: 0 | BD16: 397.953 | BF16: 0 | BG16: 0 | BH16: 0 | BI16: 0 | BJ16: 135.30402 | BK16: 0 | BL16: 135.30402 | BM16: 0 | BN16: 135.30402 | BO16: 0 | BP16: 0 | BQ16: 0 | BR16: 405.91206
A18: Total Operating Expenses | N18: =SUM(N9:N16) -> 119417.04 | Z18: Operating Expense | AB18: =SUM(AB9:AB16) -> 121253.3808 | AN18: Operating Expense | AP18: =SUM(AP9:AP16) -> 123126.4484 | BB18: Operating Expense | BD18: =SUM(BD9:BD16) -> 125036.9774 | BP18: Operating Expense | BR18: =SUM(BR9:BR16) -> 126985.7169
A20: Net Operating Income (NOI) | N20: =SUM(N7-N18) -> 236582.96 | Z20: (NOI) | AB20: =SUM(AB7-AB18) -> 246806.6192 | AN20: (NOI) | AP20: =SUM(AP7-AP18) -> 256995.3516 | BB20: (NOI) | BD20: =SUM(BD7-BD18) -> 267148.4766 | BP20: (NOI) | BR20: =SUM(BR7-BR18) -> 277265.3007
A21: Purchase Price | N21: 2200000 | AB21: 2200000 | AP21: 2200000 | BD21: 2200000 | BR21: 2200000
A22: Capitalization Rate (Cap Rate) | N22: =N20/N21 -> 0.1075377091 | AB22: =AB20/AB21 -> 0.1121848269 | AP22: =AP20/AP21 -> 0.1168160689 | BD22: =BD20/BD21 -> 0.1214311257 | BR22: =BR20/BR21 -> 0.1260296821
A24: Notes:
A25: *Rental Income assumes 92% occupancy at $590/lot Year 1
A26: $20/lot per year increase at 50 lots (92% occupancy)
A27: 54 Total Rentable lots
A28: Utilities, Insurance, Property Taxes assumes 2% increase YoY

Sheet 5yr Annual Summary
A1: Category | B1: Year 1 Total | C1: Year 2 Total | D1: Year 3 Total | E1: Year 4 Total | F1: Year 5 Total
A2: Rental Income | B2: 354000 | C2: 366000 | D2: 378000 | E2: 390000 | F2: 402000
A3: Laundry Income | B3: 2000 | C3: 2060 | D3: 2121.8 | E3: 2185.454 | F3: 2251.01762
A4: Total Revenue | B4: =SUM(B2:B3) -> 356000 | C4: 368060 | D4: 380121.8 | E4: 392185.454 | F4: 404251.0176
A5: Utilities (Water/Sewer/Trash) | B5: 30000 | C5: 30600 | D5: 31212 | E5: 31836.24 | F5: 32472.9648
A6: Electricity | B6: 43200 | C6: 44064 | D6: 44945.28 | E6: 45844.1856 | F6: 46761.06931
A7: Maintenance & Repairs | B7: 6996 | C7: 7135.92 | D7: 7278.6384 | E7: 7424.211168 | F7: 7572.695391
A8: Insurance | B8: 1823.04 | C8: 1859.5008 | D8: 1896.690816 | E8: 1934.624632 | F8: 1973.317125
A9: Property Taxes | B9: 9423 | C9: 9611.46 | D9: 9803.6892 | E9: 9999.762984 | F9: 10199.75824
A10: Management | B10: 24000 | C10: 24000 | D10: 24000 | E10: 24000 | F10: 24000
A11: Marketing & Advertising | B11: 3600 | C11: 3600 | D11: 3600 | E11: 3600 | F11: 3600
A12: Miscellaneous | B12: 375 | C12: 382.5 | D12: 390.15 | E12: 397.953 | F12: 405.91206
A13: Total Operating Expenses | B13: =SUM(B5:B12) -> 119417.04 | C13: 121253.3808 | D13: 123126.4484 | E13: 125036.9774 | F13: 126985.7169
A14: Net Operating Income (NOI) | B14: =B4-B13 -> 236582.96 | C14: 246806.6192 | D14: 256995.3516 | E14: 267148.4766 | F14: 277265.3007
A15: Purchase Price | B15: 2200000 | C15: 2200000 | D15: 2200000 | E15: 2200000 | F15: 2200000
A16: Capitalization Rate (Cap Rate) | B16: =B14/B15 -> 0.1075377091 | C16: 0.1121848269 | D16: 0.1168160689 | E16: 0.1214311257 | F16: 0.1260296821
A17: 2024 Actual | B17: 0 | C17: 0 | D17: 0 | E17: 0 | F17: 0
A18: NOI | B18: 201542.96 | C18: 208783.4192 | D18: 216264.9756 | E18: 223995.3397 | F18: 231982.4631
A19: Cash Flow | B19: 201542.96 | C19: 208783.4192 | D19: 216264.9756 | E19: 223995.3397 | F19: 231982.4631
